fUSD/lending_fUSD_20240122
["ID","MTS","AMOUNT","RATE_DAILY","PERIOD"]
[312491024,1705927872359,-744.4,0.00054794,120]
[312491025,1705927872369,-500.0,0.00054794,120]
[312491026,1705927872379,-502.01553391,0.00054794,120]
[312491027,1705927872389,-1445.48,0.00054794,120]
[312491028,1705927872399,-500.0,0.00054794,120]
[312491029,1705927872409,-500.0,0.00054794,7]
[312491030,1705927872419,-581.32,0.00054794,120]
[312491031,1705927872428,-500.0,0.00054794,120]
[312491032,1705927872438,-500.0,0.00054794,120]
[312491033,1705927872448,-1324.79,0.00054794,120]
[312491034,1705927872458,-500.0,0.00054794,120]
[312491035,1705927872468,-860.07,0.00054794,120]
[312491036,1705927872478,-500.0,0.00054794,120]
[312491037,1705927872488,-500.0,0.00054794,120]
[312491038,1705927872498,-669.53,0.00054794,120]
[312491039,1705927872508,-1231.79,0.00054794,120]
[312491040,1705927872517,-500.0,0.00054794,120]
[312491041,1705927872527,-1050.51,0.00054794,120]
[312491042,1705927872536,-500.0,0.00054794,120]
[312491043,1705927872546,-500.0,0.00054794,120]
[312491044,1705927872555,-500.0,0.00054794,120]
[312491045,1705927872565,-940.15,0.00054794,120]
[312491046,1705927872575,-500.0,0.00054794,120]
[312491047,1705927872584,-500.0,0.00054794,120]
[312491048,1705927872594,-1430.24,0.00054794,120]
[312491049,1705927872604,-738.67,0.00054794,120]
[312491050,1705927872614,-521.41900554,0.00054794,120]
[312491051,1705927872623,-649.73,0.00054794,120]
[312491052,1705927872633,-500.0,0.00054794,120]
[312491053,1705927872642,-935.65,0.00054794,120]
[312491054,1705927872652,-500.0,0.00054794,120]
[312491055,1705927872661,-500.0,0.00054794,120]
[312491056,1705927872671,-635.04,0.00054794,120]
[312491057,1705927872681,-509.29015052,0.00054794,120]
[312491058,1705927872691,-815.23,0.00054794,120]
[312491059,1705927872701,-2196.42,0.00054794,120]
[312491060,1705927872710,-500.0,0.00054794,120]
[312491061,1705927872719,-500.0,0.00054794,120]
[312491062,1705927872729,-539.24,0.00054794,120]
[312491063,1705927872738,-500.0,0.00054794,120]
[312491064,1705927872747,-521.3,0.00054794,120]
[312491065,1705927872757,-694.63,0.00054794,120]
[312491066,1705927872766,-972.33,0.00054794,120]
[312491067,1705927872775,-500.0,0.00054794,120]
[312491068,1705927872785,-500.0,0.00054794,120]
[312491069,1705927872795,-869.35,0.00054794,120]
[312491070,1705927872804,-808.21,0.00054794,120]
[312491071,1705927872814,-195.74179725,0.00054794,120]
[312491072,1705927872823,-846.52,0.00054794,120]
[312491073,1705927872833,-500.0,0.00054794,120]
[312491074,1705927872843,-984.49,0.00054794,120]
[312491075,1705927872852,-500.0,0.00054794,120]
[312491076,1705927872862,-2173.5,0.00054794,120]
[312491077,1705927872871,-511.02284619,0.00054794,120]
[312491078,1705927872881,-500.0,0.00054794,120]
[312491079,1705927872890,-500.0,0.00054794,120]
[312491080,1705927872900,-1617.25,0.00054794,120]
[312491081,1705927872910,-500.0,0.00054794,120]
[312491082,1705927872919,-500.0,0.00054794,120]
[312491083,1705927872929,-507.91515946,0.00054794,120]
[312491084,1705927872938,-871.8,0.00054794,120]
[312491085,1705927872947,-500.0,0.00054794,120]
[312491086,1705927872956,-500.0,0.00054794,120]
[312491087,1705927872966,-500.0,0.00054794,120]
[312491088,1705927872976,-1019.88,0.00054794,120]
[312491089,1705927872986,-500.0,0.00054794,120]
[312491090,1705927872996,-500.0,0.00054794,120]
[312491091,1705927873005,-427.81,0.00054794,120]
[312491092,1705927873015,-500.0,0.00054794,120]
[312491093,1705927873025,-500.0,0.00054794,120]
[312491094,1705927873034,-770.81,0.00054794,120]
[312491095,1705927873044,-1158.54,0.00054794,120]
[312491096,1705927873054,-500.0,0.00054794,120]
[312491097,1705927873063,-625.6,0.00054794,120]
[312491098,1705927873072,-2375.15,0.00054794,120]
[312491099,1705927873082,-500.0,0.00054794,120]
[312491100,1705927873091,-548.47,0.00054794,120]
[312491101,1705927873102,-500.0,0.00054794,120]
[312491102,1705927873112,-500.0,0.00054794,120]
[312491103,1705927873124,-500.0,0.00054794,120]
[312491104,1705927873134,-500.0,0.00054794,120]
[312491105,1705927873144,-500.0,0.00054794,120]
[312491106,1705927873153,-1747.74,0.00054794,120]
[312491107,1705927873163,-500.0,0.00054794,120]
[312491108,1705927873172,-500.0,0.00054794,120]
[312491109,1705927873182,-500.0,0.00054794,120]
[312491110,1705927873193,-561.19,0.00054794,120]
[312491111,1705927873203,-632.87710514,0.00054794,120]
[312491112,1705927873214,-1327.59,0.00054794,120]
[312491113,1705927873224,-500.0,0.00054794,120]
[312491114,1705927873234,-500.0,0.00054794,120]
[312491115,1705927873244,-500.0,0.00054794,120]
[312491116,1705927873255,-659.18,0.00054794,120]
[312491117,1705927873264,-1037.39,0.00054794,120]
[312491118,1705927873275,-500.0,0.00054794,120]
[312491119,1705927873285,-5625.71,0.00054794,5]
[312491120,1705927873296,-585.8,0.00054794,120]
[312491121,1705927873306,-914.35,0.00054794,120]
[312491122,1705927873315,-500.0,0.00054794,120]
[312491123,1705927873325,-1767.71,0.00054794,120]
[312491124,1705927873335,-500.0,0.00054794,120]
[312491125,1705927873344,-500.0,0.00054794,120]
[312491126,1705927873354,-500.0,0.00054794,120]
[312491127,1705927873364,-500.0,0.00054794,120]
[312491128,1705927873374,-500.0,0.00054794,120]
[312491129,1705927873384,-2096.74,0.00054794,120]
[312491130,1705927873393,-500.0,0.00054794,120]
[312491131,1705927873403,-500.0,0.00054794,120]
[312491132,1705927873413,-863.94,0.00054794,120]
[312491133,1705927873423,-506.2,0.00054794,120]
[312491134,1705927873433,-500.0,0.00054794,120]
[312491135,1705927873443,-5831.23,0.00054794,120]
[312491136,1705927873453,-500.0,0.00054794,120]
[312491137,1705927873463,-500.0,0.00054794,120]
[312491138,1705927873472,-728.08,0.00054794,120]
[312491139,1705927873481,-500.0,0.00054794,120]
[312491140,1705927873491,-501.02210872,0.00054794,7]
[312491141,1705927873501,-1000.0,0.00054794,7]
[312491142,1705927873510,-500.0,0.00054794,120]
[312491143,1705927873520,-1807.19,0.00054794,120]
[312491144,1705927873529,-847.83,0.00054794,120]
[312491145,1705927873539,-1162.19,0.00054794,120]
[312491146,1705927873548,-792.45,0.00054794,120]
[312491147,1705927873558,-1583.99,0.00054794,120]
[312491148,1705927873568,-500.0,0.00054794,120]
[312491149,1705927873578,-500.0,0.00054794,120]
[312491150,1705927873588,-1026.21,0.00054794,120]
[312491151,1705927873599,-1623.23,0.00054794,120]
[312491152,1705927873608,-506.24502901,0.00054794,120]
[312491153,1705927873618,-751.52,0.00054794,120]
[312491154,1705927873628,-2071.37,0.00054794,120]
[312491155,1705927873637,-500.0,0.00054794,120]
[312491156,1705927873647,-500.0,0.00054794,120]
[312491157,1705927873657,-500.0,0.00054794,120]
[312491158,1705927873667,-2200.59,0.00054794,120]
[312491159,1705927873677,-917.29,0.00054794,120]
[312491160,1705927873686,-519.28524469,0.00054794,120]
[312491161,1705927873696,-500.0,0.00054794,120]
[312491162,1705927873706,-396.35403231,0.00054794,120]
[312491163,1705927873715,-500.0,0.00054794,120]
[312491164,1705927873724,-1213.04,0.00054794,120]
[312491165,1705927873734,-500.0,0.00054794,120]
[312491166,1705927873744,-1696.75,0.00054794,120]
[312491167,1705927873753,-500.0,0.00054794,120]
[312491168,1705927873763,-1032.66,0.00054794,120]
[312491169,1705927873773,-500.0,0.00054794,120]
[312491170,1705927873782,-6132.16,0.00054794,120]
[312491171,1705927873792,-500.0,0.00054794,120]
[312491172,1705927873801,-504.17306386,0.00054794,120]
[312491173,1705927873810,-953.61,0.00054794,120]
[312491174,1705927873820,-500.0,0.00054794,120]
[312491175,1705927873829,-500.0,0.00054794,120]
[312491176,1705927873838,-1653.6,0.00054794,120]
[312491177,1705927873847,-2222.63,0.00054794,120]
[312491178,1705927873857,-2647.76,0.00054794,120]
[312491179,1705927873867,-2000.38,0.00054794,120]
[312491180,1705927873877,-500.0,0.00054794,120]
[312491181,1705927873886,-2192.64,0.00054794,120]
[312491182,1705927873896,-704.89,0.00054794,120]
[312491183,1705927873905,-500.0,0.00054794,120]
[312491184,1705927873915,-883.83,0.00054794,120]
[312491185,1705927873925,-1236.49,0.00054794,120]
[312491186,1705927873934,-655.26,0.00054794,120]
[312491187,1705927873943,-500.0,0.00054794,120]
[312491188,1705927873954,-500.0,0.00054794,120]
[312491189,1705927873963,-505.23027259,0.00054794,120]
[312491190,1705927873972,-505.96285274,0.00054794,120]
[312491191,1705927873983,-500.0,0.00054794,120]
[312491192,1705927873992,-2364.54,0.00054794,120]
[312491193,1705927874002,-11388.19,0.00054794,120]
[312491194,1705927874012,-4854.26,0.00054794,120]
[312491195,1705927874021,-500.0,0.00054794,120]
[312491196,1705927874031,-500.0,0.00054794,120]
[312491197,1705927874040,-500.0,0.00054794,120]
[312491198,1705927874050,-910.95,0.00054794,120]
[312491199,1705927874059,-1967.89,0.00054794,120]
[312491200,1705927874068,-1440.77,0.00054794,120]
[312491201,1705927874077,-500.0,0.00054794,120]
[312491202,1705927874086,-500.0,0.00054794,120]
[312491203,1705927874096,-1257.08,0.00054794,120]
[312491204,1705927874105,-564.72,0.00054794,120]
[312491205,1705927874115,-500.0,0.00054794,120]
[312491206,1705927874127,-1452.67,0.00054794,120]
[312491207,1705927874136,-500.0,0.00054794,120]
[312491208,1705927874145,-500.0,0.00054794,120]
[312491209,1705927874155,-500.0,0.00054794,120]
[312491210,1705927874380,-500.0,0.00054794,120]
[312491211,1705927874390,-500.0,0.00054794,120]
[312491212,1705927874400,-500.0,0.00054794,120]
[312491213,1705927874410,-1734.24,0.00054794,120]
[312491214,1705927874420,-500.0,0.00054794,120]
[312491215,1705927874430,-500.0,0.00054794,120]
[312491216,1705927874440,-609.57628191,0.00054794,120]
[312491217,1705927874450,-500.0,0.00054794,120]
[312491218,1705927874460,-1513.41,0.00054794,120]
[312491219,1705927874470,-500.0,0.00054794,120]
[312491220,1705927874480,-500.0,0.00054794,120]
[312491221,1705927874490,-1897.74,0.00054794,120]
[312491222,1705927874500,-1532.15,0.00054794,120]
[312491223,1705927874509,-500.0,0.00054794,120]
[312491224,1705927874518,-1771.39,0.00054794,120]
[312491225,1705927874527,-500.0,0.00054794,120]
[312491226,1705927874536,-1000.0,0.00054794,120]
[312491227,1705927874545,-500.0,0.00054794,120]
[312491228,1705927874554,-830.67,0.00054794,120]
[312491229,1705927874563,-500.0,0.00054794,120]
[312491230,1705927874573,-500.0,0.00054794,120]
[312491231,1705927874582,-500.0,0.00054794,120]
[312491232,1705927874592,-500.0,0.00054794,120]
[312491233,1705927874601,-1933.87,0.00054794,120]
[312491234,1705927874611,-500.0,0.00054794,120]
[312491235,1705927874620,-500.0,0.00054794,120]
[312491236,1705927874630,-3173.12,0.00054794,120]
[312491237,1705927874641,-717.98,0.00054794,120]
[312491238,1705927874651,-663.73,0.00054794,120]
[312491239,1705927874661,-500.0,0.00054794,120]
[312491240,1705927874671,-500.0,0.00054794,120]
[312491241,1705927874683,-500.0,0.00054794,120]
[312491242,1705927874694,-734.17,0.00054794,120]
[312491243,1705927874704,-500.0,0.00054794,120]
[312491244,1705927874714,-500.0,0.00054794,120]
[312491245,1705927874725,-778.35,0.00054794,120]
[312491246,1705927874735,-507.94317154,0.00054794,120]
[312491247,1705927874746,-527.33709504,0.00054794,120]
[312491248,1705927874755,-500.0,0.00054794,120]
[312491249,1705927874765,-1096.69,0.00054794,120]
[312491250,1705927874774,-14916.0,0.00054794,120]
[312491251,1705927874783,-500.0,0.00054794,120]
[312491252,1705927874792,-515.53093742,0.00054794,120]
[312491253,1705927874801,-1713.4,0.00054794,120]
[312491254,1705927874811,-500.0,0.00054794,120]
[312491255,1705927874821,-500.0,0.00054794,120]
[312491256,1705927874831,-1423.91,0.00054794,120]
[312491257,1705927874840,-500.0,0.00054794,120]
[312491258,1705927874850,-709.66,0.00054794,120]
[312491259,1705927874860,-911.23,0.00054794,120]
[312491260,1705927874869,-500.0,0.00054794,120]
[312491261,1705927874879,-708.8,0.00054794,120]
[312491262,1705927874889,-500.0,0.00054794,120]
[312491263,1705927874898,-500.0,0.00054794,120]
[312491264,1705927874908,-1161.25,0.00054794,120]
[312491265,1705927874917,-662.89,0.00054794,120]
[312491266,1705927874927,-500.0,0.00054794,120]
[312491267,1705927874938,-1860.47,0.00054794,120]
[312491268,1705927874947,-893.25,0.00054794,120]
[312491269,1705927874956,-1908.96,0.00054794,120]
[312491270,1705927874967,-500.0,0.00054794,120]
[312491271,1705927874976,-500.0,0.00054794,120]
[312491272,1705927874986,-500.0,0.00054794,120]
[312491273,1705927874995,-5186.41,0.00054794,5]
[312491274,1705927875005,-1529.13,0.00054794,120]
[312491275,1705927875016,-1737.47,0.00054794,120]
[312491276,1705927875026,-500.0,0.00054794,120]
[312491277,1705927875035,-500.0,0.00054794,120]
[312491278,1705927875045,-1718.07,0.00054794,120]
[312491279,1705927875054,-500.0,0.00054794,120]
[312491280,1705927875064,-500.0,0.00054794,120]
[312491281,1705927875074,-729.36,0.00054794,120]
[312491282,1705927875083,-1750.56,0.00054794,120]
[312491283,1705927875092,-2000.60943977,0.00054794,120]
[312491284,1705927875726,-1339.08056023,0.00054794,120]
[312491285,1705927875736,-500.0,0.00054794,120]
[312491286,1705927875745,-764.55,0.00054794,120]
[312491287,1705927875754,-1447.37,0.00054794,120]
[312491288,1705927875779,-642.9,0.00054794,120]
[312491289,1705927875797,-500.0,0.00054794,120]
[312491290,1705927875814,-500.0,0.00054794,120]
[312491291,1705927875826,-2210.96,0.00054794,120]
[312491292,1705927875835,-500.0,0.00054794,120]
[312491293,1705927875844,-500.0,0.00054794,120]
[312491294,1705927875853,-1824.98,0.00054794,120]
[312491295,1705927875862,-500.0,0.00054794,120]
[312491296,1705927875871,-500.0,0.00054794,120]
[312491297,1705927875880,-1386.6,0.00054794,120]
[312491298,1705927875889,-500.0,0.00054794,120]
[312491299,1705927875898,-500.0,0.00054794,120]
[312491300,1705927875907,-2047.64,0.00054794,120]
[312491301,1705927875917,-572.8,0.00054794,120]
[312491302,1705927875927,-500.0,0.00054794,120]
[312491303,1705927875937,-500.0,0.00054794,120]
[312491304,1705927875947,-500.0,0.00054794,120]
[312491305,1705927875956,-500.0,0.00054794,120]
[312491306,1705927875966,-500.0,0.00054794,120]
[312491307,1705927875976,-500.0,0.00054794,120]
[312491308,1705927875985,-1911.91,0.00054794,120]
[312491309,1705927875995,-636.13,0.00054794,120]
[312491310,1705927876004,-5116.41,0.00054794,120]
[312491311,1705927876013,-851.66,0.00054794,120]
[312491312,1705927876024,-500.0,0.00054794,120]
[312491313,1705927876034,-2068.23,0.00054794,120]
[312491314,1705927876045,-1177.28,0.00054794,120]
[312491315,1705927876055,-1141.08,0.00054794,120]
[312491316,1705927876064,-183.52016082,0.00054794,120]
[312491317,1705927876076,-316.47983918,0.00054794,120]
[312491318,1705927876086,-500.0,0.00054794,120]
[312491319,1705927876095,-500.0,0.00054794,120]
[312491320,1705927876105,-628.87,0.00054794,120]
[312491321,1705927876115,-2720.73,0.00054794,120]
[312491322,1705927876126,-1622.4,0.00054794,120]
[312491323,1705927876137,-500.0,0.00054794,120]
[312491324,1705927876147,-500.0,0.00054794,120]
[312491325,1705927876156,-500.0,0.00054794,120]
[312491326,1705927876167,-500.0,0.00054794,120]
[312491327,1705927876176,-997.7,0.00054794,120]
[312491328,1705927876189,-500.0,0.00054794,120]
[312491329,1705927876200,-1892.88,0.00054794,120]
[312491330,1705927876210,-1328.96,0.00054794,120]
[312491331,1705927876219,-500.0,0.00054794,120]
[312491332,1705927876229,-620.07,0.00054794,120]
[312491333,1705927876238,-710.75,0.00054794,120]
[312491334,1705927876248,-150.0,0.00054794,120]
[312491335,1705927876258,-500.0,0.00054794,120]
[312491336,1705927876268,-500.0,0.00054794,120]
[312491337,1705927876277,-500.0,0.00054794,120]
[312491338,1705927876287,-1869.54,0.00054794,120]
[312491339,1705927876297,-1800.47,0.00054794,120]
[312491340,1705927876307,-500.0,0.00054794,120]
[312491341,1705927876317,-1079.37,0.00054794,120]
[312491342,1705927876326,-1565.28,0.00054794,120]
[312491343,1705927876336,-500.0,0.00054794,120]
[312491344,1705927876345,-500.0,0.00054794,120]
[312491345,1705927876354,-500.0,0.00054794,120]
[312491346,1705927876365,-500.0,0.00054794,120]
[312491347,1705927876375,-500.0,0.00054794,30]
[312491348,1705927876384,-500.0,0.00054794,120]
[312491349,1705927876394,-880.55,0.00054794,120]
[312491350,1705927876404,-1187.06,0.00054794,120]
[312491351,1705927876414,-500.0,0.00054794,120]
[312491352,1705927876424,-500.0,0.00054794,120]
[312491353,1705927876435,-825.98,0.00054794,120]
[312491354,1705927876445,-727.07,0.00054794,120]
[312491355,1705927876456,-707.21,0.00054794,120]
[312491356,1705927876467,-1938.46,0.00054794,120]
[312491357,1705927876476,-1216.84,0.00054794,120]
[312491358,1705927876486,-1663.41,0.00054794,120]
[312491359,1705927876496,-1239.74,0.00054794,120]
[312491360,1705927876506,-500.0,0.00054794,120]
[312491361,1705927876515,-2234.78,0.00054794,120]
[312491362,1705927876524,-500.0,0.00054794,120]
[312491363,1705927876533,-500.0,0.00054794,120]
[312491364,1705927876543,-500.0,0.00054794,120]
[312491365,1705927876552,-500.0,0.00054794,120]
[312491366,1705927876561,-911.3,0.00054794,120]
[312491367,1705927876570,-501.28255503,0.00054794,120]
[312491368,1705927876580,-831.31,0.00054794,120]
[312491369,1705927876589,-1848.21,0.00054794,120]
[312491370,1705927876598,-500.0,0.00054794,120]
[312491371,1705927876607,-500.0,0.00054794,120]
[312491372,1705927876617,-500.0,0.00054794,120]
[312491373,1705927876627,-500.0,0.00054794,120]
[312491374,1705927876636,-821.65,0.00054794,120]
[312491375,1705927876646,-1939.26,0.00054794,120]
[312491376,1705927876657,-1960.8,0.00054794,120]
[312491377,1705927876667,-500.0,0.00054794,120]
[312491378,1705927876676,-2297.72,0.00054794,120]
[312491379,1705927876689,-253.03809498,0.00054794,120]
[312491380,1705927876698,-1859.48,0.00054794,120]
[312491381,1705927876708,-500.0,0.00054794,120]
[312491382,1705927876719,-500.0,0.00054794,120]
[312491383,1705927876731,-500.0,0.00054794,120]
[312491384,1705927876740,-500.0,0.00054794,120]
[312491385,1705927876764,-500.0,0.00054794,10]
[312491386,1705927876774,-500.0,0.00054794,120]
[312491387,1705927876787,-1804.6,0.00054794,120]
[312491388,1705927876805,-500.0,0.00054794,120]
[312491389,1705927876818,-500.0,0.00054794,120]
[312491390,1705927876830,-500.0,0.00054794,120]
[312491391,1705927876843,-509.92501422,0.00054794,120]
[312491392,1705927876853,-500.0,0.00054794,120]
[312491393,1705927877080,-500.0,0.00054794,120]
[312491394,1705927877090,-660.84,0.00054794,120]
[312491395,1705927877103,-500.0,0.00054794,120]
[312491396,1705927877113,-500.0,0.00054794,120]
[312491397,1705927877123,-1320.62,0.00054794,120]
[312491398,1705927877134,-602.12,0.00054794,120]
[312491399,1705927877145,-477.61821339,0.00054794,120]
[312491400,1705927877856,-151.0,0.00034998,7]
[312491401,1705927877866,-151.0,0.00034998,7]
[312491402,1705927877875,-151.0,0.00034998,7]
[312491403,1705927877885,-151.0,0.00034998,7]
[312491404,1705927877895,-151.0,0.00034998,7]
[312491405,1705927877904,-151.0,0.00035535,7]
[312491406,1705927877913,-151.0,0.00036171,7]
[312491407,1705927877924,-150.0,0.00037995,2]
[312491408,1705927877934,-150.0,0.00040995,2]
[312491409,1705927877943,-418.78,0.00044032,2]
[312491410,1705927877953,-408.9,0.00044032,2]
[312491411,1705927877963,-150.0,0.00044032,2]
[312491412,1705927877973,-150.0,0.00044032,2]
[312491413,1705927877982,-22.38178661,0.00054794,120]
[312491414,1705927877992,-714.53,0.00054794,120]
[312491415,1705927878001,-1057.9,0.00054794,120]
[312491416,1705927878010,-779.67,0.00054794,120]
[312491417,1705927878019,-500.0,0.00054794,120]
[312491418,1705927878029,-513.02726259,0.00054794,120]
[312491419,1705927878049,-150.0,0.00044032,2]
[312491420,1705927878059,-114.89273741,0.00054794,120]
[312491421,1705927878068,-11240.08,0.00054794,120]
[312491422,1705927878078,-500.0,0.00054794,120]
[312491423,1705927878087,-5593.68,0.00054794,120]
[312491424,1705927878097,-500.0,0.00054794,120]
[312491425,1705927878114,-318.6990999,0.00054794,120]
[312491426,1705927878124,-500.0,0.00054794,120]
[312491427,1705927878149,-504.21238893,0.00054794,120]
[312491428,1705927878159,-500.0,0.00054794,120]
[312491429,1705927878175,-2299.15,0.00054794,120]
[312491430,1705927878186,-500.0,0.00054794,120]
[312491431,1705927878196,-557.54640354,0.00054794,120]
[312491432,1705927878206,-1920.33,0.00054794,120]
[312491433,1705927878217,-500.0,0.00054794,120]
[312491434,1705927878227,-500.0,0.00054794,120]
[312491435,1705927878236,-1288.58,0.00054794,120]
[312491436,1705927878246,-933.54,0.00054794,120]
[312491437,1705927878255,-678.54,0.00054794,120]
[312491438,1705927878264,-500.0,0.00054794,120]
[312491439,1705927878274,-1940.82,0.00054794,120]
[312491440,1705927878283,-709.94,0.00054794,120]
[312491441,1705927878293,-500.0,0.00054794,120]
[312491442,1705927878303,-548.38680621,0.00054794,120]
[312491443,1705927878313,-1110.89,0.00054794,120]
[312491444,1705927878322,-500.0,0.00054794,120]
[312491445,1705927878332,-698.12,0.00054794,120]
[312491446,1705927878342,-1906.74,0.00054794,120]
[312491447,1705927878352,-500.0,0.00054794,120]
[312491448,1705927878361,-666.0,0.00054794,120]
[312491449,1705927878371,-500.0,0.00054794,120]
[312491450,1705927878381,-500.0,0.00054794,120]
[312491451,1705927878391,-549.91,0.00054794,120]
[312491452,1705927878400,-500.0,0.00054794,120]
[312491453,1705927878410,-1372.18,0.00054794,120]
[312491454,1705927878419,-1798.44,0.00054794,120]
[312491455,1705927878429,-1488.7,0.00054794,120]
[312491456,1705927878438,-646.54,0.00054794,120]
[312491457,1705927878448,-911.24,0.00054794,120]
[312491458,1705927878457,-2159.03,0.00054794,120]
[312491459,1705927878467,-977.54,0.00054794,120]
[312491460,1705927878476,-2872.27,0.00054794,120]
[312491461,1705927878486,-6952.36,0.00054794,120]
[312491462,1705927878497,-2390.79,0.00054794,120]
[312491463,1705927878507,-500.0,0.00054794,120]
[312491464,1705927878516,-500.0,0.00054794,120]
[312491465,1705927878525,-688.06,0.00054794,120]
[312491466,1705927878535,-798.45,0.00054794,120]
[312491467,1705927878544,-500.0,0.00054794,120]
[312491468,1705927878553,-1524.9,0.00054794,120]
[312491469,1705927878564,-500.0,0.00054794,120]
[312491470,1705927878573,-606.52,0.00054794,120]
[312491471,1705927878582,-500.0,0.00054794,120]
[312491472,1705927878591,-1000.0,0.00054794,2]
[312491473,1705927878601,-819.41,0.00054794,120]
[312491474,1705927878610,-4134.39,0.00054794,120]
[312491475,1705927878619,-500.0,0.00054794,120]
[312491476,1705927878628,-500.0,0.00054794,120]
[312491477,1705927878638,-500.0,0.00054794,120]
[312491478,1705927878647,-1502.27,0.00054794,120]
[312491479,1705927878657,-1350.97,0.00054794,120]
[312491480,1705927878666,-944.14,0.00054794,120]
[312491481,1705927878675,-5185.37,0.00054794,120]
[312491482,1705927878686,-1002.73,0.00054794,120]
[312491483,1705927878695,-572.1,0.00054794,2]
[312491484,1705927878704,-500.0,0.00054794,120]
[312491485,1705927878714,-500.0,0.00054794,120]
[312491486,1705927878739,-500.0,0.00054794,120]
[312491487,1705927878769,-1913.0,0.00054794,120]
[312491488,1705927878779,-828.93,0.00054794,120]
[312491489,1705927878788,-500.0,0.00054794,120]
[312491490,1705927878798,-7011.92,0.00054794,120]
[312491491,1705927878808,-506.62643335,0.00054794,120]
[312491492,1705927878818,-500.0,0.00054794,120]
[312491493,1705927878827,-500.0,0.00054794,120]
[312491494,1705927878837,-263.46869367,0.00054794,120]
[312491495,1705927878846,-1605.9,0.00054794,120]
[312491496,1705927878857,-994.02,0.00054794,120]
[312491497,1705927878867,-2208.51,0.00054794,120]
[312491498,1705927878877,-591.82,0.00054794,120]
[312491499,1705927878886,-500.0,0.00054794,120]
[312491500,1705927878896,-2079.66,0.00054794,120]
[312491501,1705927878905,-500.0,0.00054794,120]
[312491502,1705927878914,-970.12,0.00054794,120]
[312491503,1705927878923,-1125.23424195,0.00054794,120]
[312491504,1705927878933,-500.0,0.00054794,120]
[312491505,1705927878942,-500.0,0.00054794,120]
[312491506,1705927878952,-500.0,0.00054794,7]
[312491507,1705927878962,-2886.85,0.00054794,120]
[312491508,1705927878972,-500.0,0.00054794,120]
[312491509,1705927878981,-529.88,0.00054794,120]
[312491510,1705927878991,-500.0,0.00054794,120]
[312491511,1705927879000,-522.42886909,0.00054794,120]
[312491512,1705927879010,-500.0,0.00054794,120]
[312491513,1705927879020,-500.0,0.00054794,120]
[312491514,1705927879030,-1505.58,0.00054794,120]
[312491515,1705927879039,-300.0,0.00054794,120]
[312491516,1705927879049,-500.0,0.00054794,120]
[312491517,1705927879058,-645.74,0.00054794,120]
[312491518,1705927879067,-500.0,0.00054794,120]
[312491519,1705927879077,-1868.17,0.00054794,120]
[312491520,1705927879086,-500.0,0.00054794,120]
[312491521,1705927879095,-500.0,0.00054794,120]
[312491522,1705927879109,-500.0,0.00054794,120]
[312491523,1705927879120,-702.46,0.00054794,120]